bitfinex-derivatives/quotes_SOLF0:USTF0_20250819
["timestamp","ask_amount","ask_price","bid_price","bid_amount"]
[1755563502743,3.04,181.68,181.44,0.95849285]
[1755563502744,521.48,181.73,181.52,3.08]
[1755563502931,372.48,181.73,181.52,3.08]
[1755563503133,372.48,181.73,181.44,0.95849285]
[1755563503134,3.04,181.72,181.57,3.08]
[1755563503443,3.86005577,181.71,181.5,3.08]
[1755563503643,3.04,181.7,181.55,5.5053]
[1755563503845,3.04,181.7,181.5,3.08]
[1755563504041,3.04,181.7,181.53,3.08]
[1755563504348,369.44,181.73,181.58,3.08]
[1755563504845,369.44,181.73,181.49,369.62]
[1755563504846,0.04022102,181.67,181.56,14.26234633]
[1755563505046,0.04022102,181.67,181.57,3.08]
[1755563505249,369.44,181.73,181.64,0.03565784]
[1755563505439,369.44,181.73,181.61,3.08]
[1755563505639,369.44,181.73,181.55,3.08]
[1755563505640,0.04084221,181.64,181.55,3.08]
[1755563506140,369.44,181.73,181.48,3.08]
[1755563506141,3.04,181.66,181.48,3.08]
[1755563506341,153.42,181.66,181.48,3.08]
[1755563506547,3.04,181.65,181.48,3.08]
[1755563508147,3.04,181.65,181.43,3.08]
[1755563508352,3.04,181.63,181.43,3.08]
[1755563509051,3.04,181.61,181.43,3.08]
[1755563509346,14.26234633,181.58,181.33,3.08]
[1755563509547,3.04,181.56,181.33,3.08]
[1755563509749,3.04,181.52,181.33,3.08]
[1755563510148,3.04,181.52,181.28,0.95933839]
[1755563510149,3.04,181.52,181.28,4.03933839]
[1755563510346,3.04,181.52,181.28,3.08]
[1755563510547,30.71234633,181.53,181.28,3.08]
[1755563510749,3.04,181.41,181.28,3.08]
[1755563511050,153.18,181.41,181.28,3.08]
[1755563511250,3.04,181.4,181.2,3.08]
[1755563511449,3.04,181.4,181.22,14.26234633]
[1755563511640,150.0,181.44,181.28,3.08]
[1755563512246,2.99,181.43,181.22,3.09]
[1755563512452,153.17,181.43,181.24,3.09]
[1755563512848,369.8,181.45,181.27,14.26234633]
[1755563513053,369.8,181.45,181.28,3.09]
[1755563513256,2.99,181.44,181.27,3.09]
[1755563513747,2.99,181.41,181.22,3.09]
[1755563513944,14.26234633,181.42,181.22,3.09]
[1755563513945,2.99,181.39,181.22,3.09]
[1755563514145,153.27,181.39,181.22,3.09]
[1755563514346,2.99,181.39,181.22,3.09]
[1755563514546,150.26,181.4,181.24,3.09]
[1755563514742,2.99,181.39,181.24,17.35234633]
[1755563514950,2.99,181.39,181.24,3.09]
[1755563515449,2.99,181.39,181.27,3.09]
[1755563517347,2.99,181.39,181.21,3.09]
[1755563517553,2.99,181.39,181.22,5.5151]
[1755563517755,2.99,181.39,181.21,3.09]
[1755563517953,2.99,181.38,181.18,3.09]
[1755563518155,150.34,181.41,181.18,3.09]
[1755563518156,16.45,181.35,181.18,3.09]
[1755563518459,2.99,181.33,181.13,17.35234633]
[1755563518650,150.8,181.32,181.14,3.09]
[1755563519454,2.99,181.33,181.14,3.09]
[1755563519653,2.99,181.33,181.14,18.27157654]
[1755563519858,2.99,181.33,181.15,3.09]
[1755563520159,18.27157654,181.47,181.15,3.09]
[1755563520353,2.99,181.43,181.22,0.03545856]
[1755563520555,0.04048934,181.26,181.22,3.12545856]
[1755563520749,0.04048934,181.26,181.13,18.27157654]
[1755563521058,2.99,181.33,181.13,18.27157654]
[1755563521256,2.99,181.33,181.14,3.09]
[1755563521760,124.0,181.44,181.14,3.09]
[1755563521960,2.99,181.42,181.14,3.09]
[1755563522261,2.99,181.41,181.19,8.6063]
[1755563522454,2.99,181.41,181.19,3.09]
[1755563522758,16.45,181.4,181.19,3.09]
[1755563522959,2.99,181.39,181.19,3.09]
[1755563523156,2.99,181.37,181.2,5.5159]
[1755563523363,2.99,181.37,181.19,3.09]
[1755563523758,2.99,181.44,181.19,3.09]
[1755563523959,150.64,181.43,181.19,3.09]
[1755563524158,150.64,181.43,181.16,18.27157654]
[1755563524159,2.99,181.44,181.31,8.6025]
[1755563524358,0.03786864,181.33,181.31,3.09]
[1755563524551,0.03786864,181.33,181.32,3.09]
[1755563524754,2.99,181.44,181.31,5.5125]
[1755563525259,2.99,181.44,181.33,5.5119]
[1755563525467,2.99,181.5,181.29,18.27157654]
[1755563525968,2.99,181.5,181.38,0.04038047]
[1755563526356,2.99,181.5,181.31,5.5125]
[1755563526752,2.99,181.5,181.42,0.04198186]
[1755563527259,2.99,181.5,181.31,2.86]
[1755563527957,2.99,181.48,181.31,2.86]
[1755563528462,16.45,181.57,181.37,2.91]
[1755563528663,2.99,181.59,181.37,2.91]
[1755563529467,2.99,181.59,181.44,5.5086]
[1755563529764,2.99,181.59,181.42,2.91]
[1755563530156,2.99,181.58,181.37,2.91]
[1755563530670,2.99,181.56,181.38,5.5102]
[1755563530964,2.99,181.56,181.37,2.91]
[1755563531665,2.99,181.56,181.43,2.91]
[1755563531865,2.99,181.6,181.43,2.91]
[1755563532764,16.45,181.6,181.38,2.91]
[1755563532962,2.99,181.59,181.38,2.91]
[1755563533266,2.99,181.59,181.44,5.5084]
[1755563533478,149.96,181.58,181.44,5.5084]
[1755563533668,149.96,181.58,181.43,2.91]
[1755563533863,2.99,181.59,181.43,2.91]
[1755563534166,2.99,181.65,181.43,2.91]
[1755563534374,6.02135762,181.76,181.42,18.27157654]
[1755563534375,2.99,181.69,181.58,5.5043]
[1755563534561,149.9,181.75,181.57,2.91]
[1755563534764,2.99,181.81,181.57,2.91]
[1755563535068,2.99,181.81,181.61,2.91]
[1755563535766,2.99,181.87,181.66,18.27157654]
[1755563535979,2.99,181.87,181.67,2.91]
[1755563536669,149.96,181.89,181.67,2.91]
[1755563537270,2.99,181.97,181.79,2.91]
[1755563537472,5.493,181.96,181.79,2.9]
[1755563537676,2.99,181.97,181.79,2.9]
[1755563538067,373.21,182.02,181.84,2.9]
[1755563538264,0.9568194,182.0,181.84,2.9]
[1755563538675,373.21,182.02,181.84,2.9]
[1755563538968,374.16663528,182.02,181.84,2.9]
[1755563539173,0.04095183,181.94,181.84,2.9]
[1755563539374,0.04095183,181.94,181.84,18.27157654]
[1755563539561,0.95663528,182.02,181.85,2.9]
[1755563539768,0.95663528,182.02,181.87,0.03680723]
[1755563539965,0.95663528,182.02,181.88,2.9]
[1755563540169,2.99,182.05,181.88,2.9]
[1755563540571,2.99,182.02,181.83,2.9]
[1755563540773,2.99,182.02,181.95,0.04010028]
[1755563541072,0.9565301,182.03,181.89,2.9]
[1755563541274,149.94,182.07,181.9,5.4946]
[1755563541579,0.95649067,182.08,181.98,2.9]
[1755563541768,2.99,182.1,181.98,2.9]
[1755563542174,2.99,182.1,181.93,2.87]
[1755563542478,2.99,182.1,182.02,0.03654047]
[1755563542873,0.9559783,182.14,181.98,2.87]
[1755563542874,3.8959783,182.14,181.98,2.87]
[1755563543265,2.94,182.14,182.04,0.04211244]
[1755563543672,2.94,182.14,181.98,2.87]
[1755563543972,18.27157654,182.37,182.07,0.04122712]
[1755563544276,2.94,182.33,182.08,2.87]
[1755563544477,0.95524355,182.3,182.11,2.87]
[1755563544776,2.94,182.29,182.19,0.04166133]
[1755563545175,2.94,182.29,182.11,2.87]
[1755563545472,2.94,182.29,182.22,0.03688696]
[1755563545673,0.95520422,182.3,182.22,0.03688696]
[1755563545875,0.95520422,182.3,182.18,2.87]
[1755563546067,2.94,182.29,182.18,2.87]
[1755563546272,2.94,182.29,182.24,0.04145916]
[1755563546574,2.94,182.33,182.24,0.04145916]
[1755563546974,2.94,182.33,182.13,2.87]
[1755563547478,0.95506003,182.32,182.16,2.87]
[1755563547778,2.94,182.33,182.16,2.87]
[1755563548279,5.484,182.26,182.16,2.87]
[1755563548484,2.94,182.33,182.16,2.87]
[1755563548680,2.94,182.38,182.17,2.87]
[1755563548878,2.94,182.32,182.17,2.87]
[1755563550080,2.94,182.36,182.17,2.87]
[1755563550277,0.95499451,182.33,182.17,2.87]
[1755563550680,149.92,182.39,182.17,2.87]
[1755563550681,2.94,182.38,182.17,2.87]
[1755563550878,0.95482419,182.36,182.17,2.87]
[1755563551074,2.94,182.35,182.17,2.87]
[1755563551379,2.94,182.35,182.12,2.87]
[1755563551877,0.95482419,182.36,182.12,2.87]
[1755563551878,2.94,182.34,182.12,2.87]
[1755563552070,2.94,182.32,182.12,2.87]
[1755563555277,2.94,182.32,182.13,2.87]
[1755563555473,153.28,182.32,182.13,2.87]
[1755563555676,0.95482419,182.36,182.13,2.87]
[1755563555991,2.94,182.38,182.23,2.87]
[1755563556986,3.89457538,182.43,182.23,2.87]
[1755563557174,2.94,182.42,182.23,2.87]
[1755563557375,2.94,182.36,182.23,2.87]
[1755563558079,2.94,182.34,182.19,368.86]
[1755563558786,2.94,182.33,182.12,2.87]
[1755563559278,0.03942215,182.24,182.12,2.87]
[1755563559481,0.03942215,182.24,182.07,368.86]
[1755563559482,0.03942215,182.24,182.21,0.03668314]
[1755563559674,2.94,182.34,182.17,2.87]
[1755563560587,0.03648317,182.27,182.17,2.87]
[1755563560774,0.95457538,182.43,182.21,31.5893715]
[1755563560980,371.9,182.45,182.22,2.87]
[1755563561376,2.94,182.45,182.22,2.87]
[1755563561688,151.24,182.49,182.35,5.4811]
[1755563561885,2.94,182.58,182.36,2.87]
[1755563562088,2.94,182.71,182.47,5.4775]
[1755563562284,0.95359448,182.64,182.42,2.87]
[1755563562476,3.89359448,182.64,182.43,2.87]
[1755563562678,0.03491578,182.61,182.57,0.03702376]
[1755563563187,2.94,182.64,182.52,2.87]
[1755563563383,2.94,182.64,182.57,0.0420704]
[1755563564288,154.52,182.7,182.57,2.9120704]
[1755563564479,2.94,182.7,182.57,2.9120704]
[1755563564685,2.94,182.77,182.57,2.87]
[1755563564982,2.94,182.77,182.62,0.03604278]
[1755563565178,2.94,182.77,182.62,2.90604278]
[1755563565378,2.94,182.77,182.62,2.87]
[1755563566993,2.94,182.77,182.68,0.03647191]
[1755563568592,2.94,182.83,182.68,0.03647191]
[1755563569084,2.94,182.83,182.67,2.87]
[1755563569284,2.94,182.83,182.74,0.03838798]
[1755563569492,3.89236792,182.83,182.74,0.03838798]
[1755563569888,2.94,182.82,182.74,0.03838798]
[1755563570090,2.94,182.82,182.61,371.29]
[1755563570291,0.03499324,182.8,182.61,371.29]
[1755563570493,151.36,182.8,182.61,371.29]
[1755563570799,2.94,182.79,182.61,2.87]
[1755563571190,16.45,182.79,182.61,2.87]
[1755563571388,2.94,182.78,182.61,2.87]
[1755563571797,19.39,182.78,182.61,2.87]
[1755563572001,2.94,182.77,182.61,2.87]
[1755563572192,2.94,182.77,182.54,2.92]
[1755563572694,0.03776046,182.67,182.59,5.4739]
[1755563572992,2.94,182.77,182.6,2.92]
[1755563573195,2.94,182.77,182.61,0.0365138]
[1755563573599,2.94,182.77,182.54,2.89]
[1755563573900,19.56,182.76,182.54,2.89]
[1755563574097,3.11,182.75,182.54,2.89]
[1755563574292,3.11,182.75,182.63,0.03705549]
[1755563574596,3.11,182.75,182.54,2.89]
[1755563574896,19.56,182.71,182.67,0.03816507]
[1755563575097,3.11,182.69,182.49,2.89]
[1755563576600,0.03560263,182.61,182.49,2.89]
[1755563577091,3.11,182.62,182.49,2.89]
[1755563578292,0.03777815,182.57,182.49,2.89]
[1755563578986,0.03777815,182.57,182.41,2.89]
[1755563579397,3.11,182.58,182.41,2.89]
[1755563579704,3.11,182.58,182.36,370.91]
[1755563579888,3.11,182.58,182.37,2.89]
[1755563580289,3.11,182.48,182.37,2.89]
[1755563580497,3.11,182.48,182.27,2.89]
[1755563580892,0.0419485,182.39,182.28,2.89]
[1755563581090,0.0419485,182.39,182.37,2.89]
[1755563581395,3.11,182.48,182.37,2.89]
[1755563581601,3.11,182.54,182.29,19.53485248]
[1755563581896,3.11,182.54,182.36,0.03607955]
[1755563582098,3.11,182.54,182.33,2.85]
[1755563582997,3.11,182.54,182.42,0.03914177]
[1755563583198,151.68,182.53,182.42,0.03914177]
[1755563583502,3.11,182.54,182.38,5.4802]
[1755563583700,3.11,182.54,182.46,0.04062838]
[1755563584197,368.02,182.57,182.46,0.04062838]
[1755563584603,368.02,182.57,182.42,8.3289]
[1755563584904,0.03721436,182.53,182.36,2.85]
[1755563585094,3.11,182.52,182.36,2.85]
[1755563585297,151.84,182.51,182.36,2.85]
[1755563585595,151.84,182.51,182.39,5.4797]
[1755563585795,151.84,182.51,182.3,2.85]
[1755563587301,151.84,182.51,182.38,2.85]
[1755563587900,151.84,182.51,182.41,5.4791]
[1755563588099,371.13,182.57,182.38,2.85]
[1755563588603,3.11,182.55,182.38,2.85]
[1755563589103,3.11,182.53,182.38,2.85]
[1755563590397,3.11,182.51,182.32,2.85]
[1755563590702,3.11,182.49,182.32,2.85]
[1755563591497,0.03640889,182.42,182.32,2.85]
[1755563591700,3.11,182.41,182.28,2.85]
[1755563591907,151.8,182.4,182.23,2.85]
[1755563592098,151.8,182.4,182.23,8.3347]
[1755563592408,151.8,182.4,182.1,10.977]
[1755563592409,3.11,182.32,182.17,2.85]
[1755563593697,0.03718417,182.26,182.17,2.85]
[1755563594403,3.11,182.36,182.17,2.85]
[1755563594904,3.11,182.36,182.24,2.84]
[1755563595309,384.63,182.44,182.28,5.4832]
[1755563595310,155.43,182.43,182.28,5.4832]
[1755563595606,3.11,182.42,182.24,2.84]
[1755563595908,3.11,182.4,182.24,2.84]
[1755563596305,3.93960709,182.39,182.19,2.84]
[1755563596504,3.11,182.37,182.22,5.4849]
[1755563597009,3.11,182.37,182.19,2.84]
[1755563598005,3.11,182.37,182.25,5.4839]
[1755563598399,3.11,182.37,182.23,2.84]
[1755563598612,3.11,182.37,182.26,5.4836]
[1755563598811,3.11,182.37,182.23,2.84]
[1755563600007,368.18,182.44,182.23,2.84]
[1755563600008,3.11,182.42,182.23,2.84]
[1755563600212,3.94804508,182.41,182.23,2.84]
[1755563600417,3.11,182.42,182.23,2.84]
[1755563600617,3.11,182.39,182.23,2.84]
[1755563600914,3.11,182.37,182.23,8.3246]
[1755563601122,3.11,182.37,182.23,2.84]
[1755563601626,3.11,182.37,182.25,5.4841]
[1755563601812,3.11,182.37,182.23,2.84]
[1755563602415,154.88,182.42,182.29,5.4828]
[1755563602724,3.94980521,182.41,182.27,2.85]
[1755563602918,154.88,182.42,182.27,2.85]
[1755563602919,2.88,182.42,182.27,2.85]
[1755563605219,3.95442454,182.41,182.27,2.85]
[1755563605418,3.95705575,182.4,182.27,2.85]
[1755563605723,2.88,182.42,182.27,2.85]
[1755563606132,2.88,182.42,182.33,5.4818]
[1755563606426,2.88,182.42,182.27,2.85]
[1755563606725,2.88,182.42,182.33,5.4818]
[1755563607120,2.88,182.42,182.27,2.85]
[1755563607826,2.88,182.42,182.32,5.4821]
[1755563608029,2.88,182.42,182.27,2.85]
[1755563608327,2.88,182.42,182.2,2.85]
[1755563609129,3.95620452,182.41,182.2,2.85]
[1755563609328,6.83620452,182.4,182.2,2.85]
[1755563609525,3.95620452,182.39,182.2,2.85]
[1755563609725,2.88,182.4,182.2,2.85]
[1755563610135,2.88,182.4,182.3,5.4825]
[1755563610317,2.88,182.4,182.28,2.85]
[1755563610823,0.03746017,182.36,182.32,0.03856209]
[1755563611029,2.88,182.34,182.32,0.03856209]
[1755563611224,0.03746017,182.36,182.32,0.03856209]
[1755563611429,2.88,182.33,182.23,2.85]
[1755563611730,2.88,182.35,182.23,2.85]
[1755563612128,2.88,182.35,182.19,368.44]
[1755563612330,2.88,182.33,182.19,368.44]
[1755563612530,2.88,182.33,182.21,5.4853]
[1755563612728,0.03742119,182.29,182.19,368.44]
[1755563613228,0.03742119,182.29,182.22,0.03831341]
[1755563613627,0.03742119,182.29,182.22,5.52331341]
[1755563614030,0.03742119,182.29,182.22,0.03831341]
[1755563614730,0.03742119,182.29,182.23,2.89]
[1755563615735,0.03742119,182.29,182.25,5.4839]
[1755563615931,0.03742119,182.29,182.25,2.89]
[1755563616134,0.03742119,182.29,182.22,0.03831341]
[1755563616135,0.03742119,182.29,182.26,2.89]
[1755563616321,0.03742119,182.29,182.22,0.03831341]
[1755563616526,0.03742119,182.29,182.21,2.89]
[1755563616831,0.03742119,182.29,182.27,5.4836]
[1755563617026,0.03742119,182.29,182.21,2.89]
[1755563618338,0.03742119,182.29,182.2,2.89]
[1755563618539,3.98857417,182.28,182.2,2.89]
[1755563618838,0.03742119,182.29,182.22,5.4849]
[1755563619032,0.03742119,182.29,182.2,2.89]
[1755563619236,0.03742119,182.29,182.19,368.44]
[1755563619430,2.88,182.27,182.15,2.89]
[1755563619629,3.99321425,182.26,182.15,2.89]
[1755563619837,3.99321425,182.25,182.15,2.89]
[1755563620031,3.99321425,182.24,182.15,2.89]
[1755563620236,2.88,182.27,182.15,2.89]
[1755563620237,0.04181767,182.22,182.15,2.89]
[1755563621035,0.04181767,182.22,182.17,5.4866]
[1755563621438,0.04181767,182.22,182.15,2.89]
[1755563621638,0.04181767,182.22,182.21,8.3754]
[1755563622439,0.04181767,182.22,182.15,5.487]
[1755563622644,0.04181767,182.22,182.13,2.89]
[1755563622845,3.99860578,182.21,182.13,2.89]
[1755563623043,0.04181767,182.22,182.13,2.89]
[1755563623238,3.99802929,182.21,182.13,2.89]
[1755563623442,0.04181767,182.22,182.13,2.89]
[1755563623646,4.00058918,182.21,182.13,2.89]
[1755563623946,4.00058918,182.2,182.1,150.1]
[1755563624134,4.00058918,182.19,182.1,150.1]
[1755563624334,4.00058918,182.18,182.1,150.1]
[1755563624539,2.88,182.22,182.1,150.1]
[1755563624739,0.04143332,182.16,182.1,150.1]
[1755563625144,6.02135762,182.25,182.15,2.89]
[1755563625345,4.000579,182.24,182.15,2.89]
[1755563625544,4.000579,182.23,182.17,5.4864]
[1755563625737,2.88,182.21,182.1,152.99]
[1755563625944,4.000579,182.2,182.1,152.99]
[1755563626143,4.000579,182.19,182.1,150.1]
[1755563626345,4.000579,182.18,182.1,150.1]
[1755563626650,4.000579,182.17,182.1,150.1]
[1755563626841,2.88,182.21,182.1,150.1]
[1755563627043,3.99716317,182.2,182.1,150.1]
[1755563627255,2.88,182.21,182.1,150.1]
[1755563627451,3.99819461,182.2,182.1,150.1]
[1755563627643,2.88,182.26,182.17,5.4863]
[1755563627845,3.99732982,182.25,182.1,150.1]
[1755563628043,6.87732982,182.24,182.09,371.41]
[1755563628249,8.90135762,182.22,182.04,2.89]
[1755563628545,2.88,182.18,181.99,2.89]
[1755563628749,2.88,182.16,181.99,152.75]
[1755563628944,3.99732982,182.15,181.99,152.75]
[1755563629142,6.02135762,182.18,181.93,2.89]
[1755563629143,2.88,182.13,181.93,2.89]
[1755563629351,8.90135762,182.11,181.93,2.89]
[1755563629542,2.88,182.09,182.01,0.03984059]
[1755563629744,2.88,182.04,182.01,0.03984059]
[1755563629941,2.88,182.03,182.01,0.03984059]
[1755563630142,0.03518711,182.05,182.01,0.03984059]
[1755563630455,2.88,182.02,182.01,0.03984059]
[1755563630653,2.88,182.02,181.91,149.92]
[1755563631953,0.03557565,181.98,181.91,149.92]
[1755563632648,2.98557565,181.98,181.91,149.92]
[1755563633352,0.03557565,181.98,181.91,149.92]
[1755563635548,0.03557565,181.98,181.92,2.89]
[1755563635746,2.95,182.08,181.97,2.89]
[1755563636152,2.95,182.08,181.98,5.4921]
[1755563636356,2.95,182.08,181.97,2.89]
[1755563636758,2.95,182.06,181.92,2.89]
[1755563637455,2.95,182.15,181.95,2.89]
[1755563637657,2.95,182.13,181.95,2.89]
[1755563637859,5.4908,182.03,181.95,2.89]
[1755563638056,2.95,182.07,181.95,2.89]
[1755563638363,5.4919,182.0,181.95,5.493]
[1755563638556,8.4419,182.0,181.95,5.493]
[1755563638856,5.4914,182.02,181.91,152.81]
[1755563639062,2.95,182.06,181.92,2.89]
[1755563639465,5.4909,182.03,181.97,5.4924]
[1755563639661,2.95,182.06,181.92,2.89]
[1755563639856,2.95,182.06,181.91,149.92]
[1755563640056,2.95,182.03,181.91,152.81]
[1755563640259,2.95,182.08,181.92,2.89]
[1755563640563,534.53,182.17,181.91,149.92]
[1755563640564,2.95,182.13,182.01,2.89]
[1755563641065,368.66,182.17,182.01,2.89]
[1755563641557,368.66,182.17,182.11,5.4881]
[1755563641758,2.95,182.19,182.06,2.89]
[1755563641966,3.95304271,182.18,182.06,2.89]
[1755563642165,2.95,182.19,182.06,2.89]
[1755563642570,2.95,182.25,182.12,2.89]
[1755563643070,2.95,182.3,182.17,0.04013965]
[1755563643379,2.95,182.28,182.12,2.89]
[1755563644474,2.95,182.28,182.18,0.04087566]
[1755563645378,0.03957572,182.25,182.18,0.04087566]
[1755563646472,2.95,182.24,182.18,0.04087566]
[1755563646973,3.49,182.24,182.09,149.38]
[1755563647277,22.47135762,182.3,182.09,149.38]
[1755563647278,2.95,182.22,182.09,149.38]
[1755563647471,2.95,182.22,182.07,2.89]
[1755563647873,6.02135762,182.32,182.08,2.89]
[1755563648068,2.95,182.3,182.08,2.89]
[1755563648268,2.95,182.28,182.08,2.89]
[1755563648468,5.4854,182.22,182.08,2.89]
[1755563648681,2.95,182.28,182.08,2.89]
[1755563648870,3.96000441,182.27,182.08,2.89]
[1755563649177,2.95,182.28,182.08,2.89]
[1755563649569,2.95,182.28,182.13,2.89]
[1755563650078,5.4814,182.35,182.22,2.89]
[1755563650275,2.95,182.36,182.22,2.89]
[1755563650475,2.95,182.41,182.27,2.89]
[1755563650975,0.04136531,182.36,182.33,5.4816]
[1755563651281,0.04136531,182.36,182.27,2.89]
[1755563651484,0.04136531,182.36,182.29,5.4829]
[1755563651675,0.04136531,182.36,182.27,2.89]
[1755563651980,0.04136531,182.36,182.28,5.4832]
[1755563652281,0.04136531,182.36,182.27,2.89]
[1755563652473,0.04136531,182.36,182.21,2.89]
[1755563652882,2.95,182.37,182.21,2.89]
[1755563653271,8.4309,182.37,182.28,5.4831]
[1755563653577,0.03866638,182.31,182.24,2.89]
[1755563654177,0.03866638,182.31,182.19,152.23]
[1755563654377,2.95,182.3,182.18,5.4862]
[1755563654878,2.95,182.3,182.14,84.91345692]
[1755563654879,2.95,182.3,182.14,2.89]
[1755563655182,2.95,182.28,182.09,22.51633962]
[1755563655679,2.95,182.26,182.09,2.89]
[1755563655877,22.47135762,182.31,182.09,2.89]
[1755563655878,3.96570982,182.25,182.09,2.89]
[1755563656078,6.91570982,182.24,182.09,2.89]
[1755563656278,3.96619567,182.23,182.09,2.89]
[1755563656481,2.95,182.22,182.08,368.72]
[1755563656778,2.95,182.2,182.04,2.89]
[1755563656979,3.96440128,182.19,181.99,2.89]
[1755563657185,2.95,182.17,182.0,5.4915]
[1755563657385,2.95,182.15,181.99,2.89]
[1755563658384,2.95,182.15,182.05,5.49]
[1755563659082,2.95,182.24,182.03,2.89]
[1755563659284,3.96742386,182.23,182.03,2.89]
[1755563659487,3.96742386,182.22,182.03,2.89]
[1755563659787,3.96742386,182.21,182.1,5.4885]
[1755563660081,2.95,182.24,182.04,2.89]
[1755563660687,2.95,182.24,182.13,5.4877]
[1755563660889,2.95,182.24,182.09,2.89]
[1755563661083,2.95,182.24,182.09,22.51633962]
[1755563661388,2.95,182.24,182.1,2.89]
[1755563661593,152.69,182.3,182.1,2.89]
[1755563661887,152.69,182.3,182.15,19.62633962]
[1755563661888,2.95,182.3,182.15,19.62633962]
[1755563662190,2.95,182.3,182.16,2.89]
[1755563662885,3.13,182.28,182.11,521.27]
[1755563663182,3.13,182.28,182.12,2.97]
[1755563664585,3.13,182.28,182.16,2.97]
[1755563664985,3.13,182.28,182.17,5.4866]
[1755563665187,3.13,182.28,182.16,2.97]
[1755563665481,3.13,182.28,182.19,5.486]
[1755563665798,3.13,182.36,182.16,2.97]
[1755563666091,3.13,182.36,182.22,2.97]
[1755563666489,3.13,182.36,182.29,5.483]
[1755563666688,3.13,182.36,182.22,2.97]
[1755563667179,3.13,182.41,182.22,2.97]
[1755563667789,3.13,182.39,182.22,2.97]
[1755563667979,3.13,182.37,182.18,149.26]
[1755563668181,3.13,182.35,182.18,149.26]
[1755563669189,3.13,182.33,182.19,5.486]
[1755563669487,3.13,182.33,182.18,149.26]
[1755563669684,3.13,182.33,182.27,5.4836]
[1755563670084,3.13,182.43,182.21,2.97]
[1755563670301,3.13,182.41,182.28,5.483]
[1755563670486,3.96678206,182.4,182.21,2.97]
[1755563670687,3.13,182.39,182.21,2.97]
[1755563670893,3.13,182.39,182.26,5.4837]
[1755563671190,3.13,182.39,182.21,2.97]
[1755563671791,3.13,182.37,182.21,2.97]
[1755563672098,3.13,182.37,182.24,5.4844]
[1755563672290,3.13,182.37,182.21,2.97]
[1755563673090,518.04,182.46,182.32,5.4819]
[1755563673390,3.13,182.42,182.27,2.97]
[1755563675384,3.13,182.42,182.34,5.4813]
[1755563675590,3.13,182.42,182.27,2.97]
[1755563676500,3.13,182.42,182.27,151.75]
[1755563676987,3.96160675,182.41,182.24,368.6]
[1755563677195,3.13,182.42,182.24,368.6]